bitfinex/quotes_ETHUSD_20250611
["timestamp","ask_amount","ask_price","bid_price","bid_amount"]
[1749683529281,6.32180968,2765.4,2764.8,0.7555]
[1749683533566,8.29924957,2765.6,2764.8,0.7555]
[1749683534478,8.29924957,2765.6,2764.7,1.02]
[1749683534479,3.794,2766.0,2765.1,0.806]
[1749683535283,10.87270968,2766.0,2765.1,0.806]
[1749683535486,6.32180968,2765.8,2765.1,0.806]
[1749683535683,6.32180968,2765.8,2765.2,1.02]
[1749683536061,6.32180968,2765.8,2765.1,0.806]
[1749683536265,0.1808,2765.2,2765.1,0.806]
[1749683536467,0.1808,2765.2,2765.1,1.826]
[1749683537096,0.1808,2765.2,2765.1,0.806]
[1749683537391,0.1808,2765.2,2765.1,1.826]
[1749683549367,0.1808,2765.2,2764.7,0.7921]
[1749683549571,6.32180968,2765.4,2764.8,1.017]
[1749683549890,7.12490968,2765.6,2764.8,1.017]
[1749683550091,7.83740065,2765.6,2764.8,1.017]
[1749683551805,0.1808,2764.8,2764.7,4.5831]
[1749683551983,0.1808,2764.8,2764.7,5.6001]
[1749683552179,0.1808,2764.8,2764.5,0.7921]
[1749683552497,0.8031,2765.1,2764.7,4.808]
[1749683553300,7.12490968,2765.4,2764.7,4.808]
[1749683553514,6.32180968,2765.0,2764.5,0.7921]
[1749683553779,6.32180968,2765.0,2764.8,1.017]
[1749683553974,6.32180968,2765.2,2764.8,1.017]
[1749683554498,0.8208,2765.1,2764.8,1.017]
[1749683555079,0.1808,2764.8,2764.5,4.5831]
[1749683555409,0.1808,2764.5,2764.2,1.017]
[1749683555574,0.7627,2765.0,2764.2,1.017]
[1749683555776,0.78374007,2765.4,2764.4,10.0]
[1749683555777,0.7627,2765.3,2764.4,10.0]
[1749683556073,0.7627,2765.3,2764.5,0.8276]
[1749683558701,6.32180968,2765.0,2764.6,1.017]
[1749683559015,0.63218097,2764.9,2764.6,1.017]
[1749683559828,6.32180968,2765.0,2764.6,1.017]
[1749683560233,6.32180968,2765.0,2764.4,10.0]
[1749683560536,0.805,2764.9,2764.5,1.017]
[1749683565238,6.32180968,2764.8,2764.5,1.017]
[1749683566239,0.805,2764.9,2764.5,1.017]
[1749683566537,1.54614007,2765.4,2764.7,6.32180968]
[1749683566733,0.7624,2765.4,2764.6,4.5539]
[1749683580667,6.32180968,2765.1,2764.5,1.017]
[1749683580824,3.61605731,2765.5,2764.2,10.0]
[1749683580825,0.1808,2764.5,2764.4,1.015]
[1749683581020,6.32180968,2764.7,2764.4,1.015]
[1749683581526,0.7618,2764.8,2764.3,1.015]
[1749683581527,0.1808,2764.4,2764.3,1.015]
[1749683581722,6.32180968,2764.7,2764.3,1.015]
[1749683582042,0.1808,2764.3,2764.2,1.015]
[1749683582346,0.7589,2764.4,2764.2,1.015]
[1749683582929,6.32180968,2764.7,2764.2,1.015]
[1749683582930,0.7589,2764.6,2764.2,1.015]
[1749683584439,6.32180968,2764.5,2764.2,1.015]
[1749683584670,3.61665639,2765.0,2764.2,1.015]
[1749683584671,6.32180968,2764.3,2764.2,1.015]
[1749683584857,0.791,2764.4,2764.2,1.015]
[1749683585058,1.50228097,2764.4,2764.2,1.015]
[1749683589682,0.791,2764.4,2764.2,1.015]
[1749683589831,7.68341541,2765.4,2764.2,11.12380968]
[1749683590036,7.12080968,2765.2,2764.3,0.7507]
[1749683591986,2.16060573,2765.4,2764.8,0.7507]
[1749683592275,0.799,2765.4,2764.8,0.7507]
[1749683599868,0.799,2765.4,2764.9,1.015]
[1749683603207,6.32180968,2765.0,2764.5,1.015]
[1749683603509,6.32180968,2764.7,2764.5,1.015]
[1749683603665,4.574,2765.2,2764.6,1.015]
[1749683603868,0.36163024,2765.2,2764.7,0.7717]
[1749683605280,0.7602,2765.4,2764.7,0.7717]
[1749683606036,6.32180968,2765.3,2764.7,0.7717]
[1749683606511,6.32180968,2765.3,2764.8,1.015]
[1749683607692,6.32180968,2765.3,2764.7,0.7717]
[1749683608019,6.32180968,2765.3,2764.8,1.015]
[1749683608196,0.70820097,2765.2,2764.8,1.015]
[1749683612018,20.10680968,2765.5,2764.8,1.015]
[1749683612633,6.32180968,2765.3,2764.8,1.015]
[1749683615592,7.07200968,2765.3,2764.8,1.015]
[1749683616622,6.32180968,2765.3,2764.8,1.015]
[1749683617321,0.786,2765.5,2764.8,1.015]
[1749683617523,3.802,2766.4,2765.1,0.8326]
[1749683617524,0.786,2766.1,2765.1,0.8326]
[1749683617723,7.03259065,2766.0,2765.1,0.8326]
[1749683617898,10.0,2765.9,2765.1,0.8326]
[1749683619998,6.32180968,2765.8,2765.1,0.8326]
[1749683620706,0.71078097,2766.0,2765.1,0.8326]
[1749683620911,10.10380968,2766.1,2765.1,0.8326]
[1749683621108,7.18726014,2766.3,2765.3,0.7944]
[1749683621295,6.32180968,2766.5,2765.4,6.32180968]
[1749683621498,6.32180968,2766.5,2765.0,3.782]
[1749683621499,6.32180968,2766.3,2765.5,0.7944]
[1749683621719,7.33219065,2766.3,2765.6,1.012]
[1749683622633,0.18,2765.6,2765.5,0.7944]
[1749683622819,0.18,2765.6,2765.5,1.8064]
[1749683626127,0.18,2765.6,2765.5,15.5874]
[1749683626646,0.18,2765.6,2765.5,21.90920968]
[1749683626941,0.18,2765.6,2765.5,24.10013065]
[1749683631191,0.18,2765.6,2765.5,17.77832097]
[1749683631350,0.18,2765.6,2765.5,24.09913065]
[1749683633360,0.18,2765.6,2765.5,19.30713065]
[1749683633570,0.18,2765.6,2765.5,24.09813065]
[1749683638576,0.18,2765.6,2765.5,19.30713065]
[1749683638737,0.18,2765.6,2765.5,24.09613065]
[1749683639461,0.18,2765.6,2765.5,12.98532097]
[1749683639642,0.18,2765.6,2765.2,0.7876]
[1749683639842,0.8214,2765.3,2764.6,0.7876]
[1749683640086,0.8214,2765.3,2764.7,1.01]
[1749683640087,6.32180968,2765.2,2764.7,1.01]
[1749683640573,0.8214,2765.3,2764.7,1.01]
[1749683642344,0.8318,2765.5,2764.8,3.778]
[1749683642575,0.8318,2765.5,2764.8,4.95776]
[1749683642777,0.8318,2765.5,2764.8,1.17976]
[1749683642945,0.8318,2765.5,2764.8,4.95776]
[1749683644257,6.32180968,2765.2,2764.6,0.7876]
[1749683644588,0.1808,2764.6,2764.4,1.01]
[1749683644778,0.7526,2764.7,2764.4,1.01]
[1749683644952,0.7544,2764.9,2764.4,1.01]
[1749683645151,1.46202097,2764.9,2764.4,1.01]
[1749683646483,0.8184,2765.1,2764.4,1.01]
[1749683646687,0.8184,2765.1,2764.5,0.7925]
[1749683648685,6.32180968,2764.9,2764.2,0.7666]
[1749683648897,6.32180968,2764.9,2764.3,4.788]
[1749683649090,0.63218097,2764.8,2764.3,4.788]
[1749683650276,6.32180968,2764.9,2764.3,4.788]
[1749683653297,0.1808,2764.3,2764.2,4.5446]
[1749683653501,0.1808,2764.3,2764.2,5.5546]
[1749683654614,0.1808,2764.3,2764.2,11.87640968]
[1749683654791,0.1808,2764.3,2764.2,13.06405065]
[1749683655392,0.1808,2764.3,2764.2,1.95424097]
[1749683655577,0.1808,2764.3,2764.0,0.7918]
[1749683655788,6.32180968,2764.4,2764.1,1.01]
[1749683656104,7.09820968,2764.6,2764.1,1.01]
[1749683657311,0.7764,2764.6,2764.1,1.01]
[1749683657543,0.7764,2764.6,2763.8,7.0368]
[1749683657544,0.1808,2764.1,2763.8,7.0368]
[1749683657680,0.7764,2764.6,2764.0,3.777]
[1749683658214,0.7764,2764.6,2764.1,1.01]
[1749683659718,0.1808,2764.1,2764.0,3.777]
[1749683659884,0.1808,2764.1,2764.0,4.787]
[1749683663001,0.1808,2764.1,2764.0,11.93950968]
[1749683663205,0.1808,2764.1,2764.0,13.75796065]
[1749683664112,0.1808,2764.1,2764.0,23.75796065]
[1749683664313,0.1808,2764.1,2764.0,24.30796065]
[1749683666052,0.8121,2765.4,2764.2,0.7511]
[1749683666217,0.1808,2764.3,2764.2,0.55]
[1749683666547,0.1808,2764.3,2764.2,15.4159451]
[1749683667416,0.1808,2764.3,2764.2,21.73775478]
[1749683668748,0.1808,2764.3,2764.2,15.8729451]
[1749683669167,0.1808,2764.3,2764.2,22.19475478]
[1749683673569,0.1808,2764.3,2764.2,12.0969451]
[1749683673757,0.1808,2764.3,2764.2,18.02640201]
[1749683674831,0.1808,2764.3,2764.2,1.008]
[1749683679534,0.1808,2764.3,2764.2,11.008]
[1749683679868,0.1808,2764.3,2764.2,13.92015691]
[1749683680775,0.1808,2764.3,2764.2,11.7657]
[1749683685672,0.1808,2764.3,2764.2,15.5397]
[1749683686573,0.1808,2764.3,2764.2,15.5387]
[1749683687250,0.1808,2764.3,2764.2,18.19175097]
[1749683693911,0.1808,2764.3,2764.2,13.41075097]
[1749683694214,0.1808,2764.3,2764.2,18.19075097]
[1749683694707,0.1808,2764.3,2764.2,24.51256065]
[1749683695007,0.1808,2764.3,2764.2,25.06256065]
[1749683701119,0.1808,2764.3,2764.2,29.73256065]
[1749683701271,0.1808,2764.5,2764.4,0.7986]
[1749683701471,0.8311,2765.8,2764.5,10.55]
[1749683701686,0.8311,2765.8,2764.9,6.32180968]
[1749683702020,0.8311,2765.8,2765.0,4.776]
[1749683702576,0.8311,2765.8,2765.1,10.0]
[1749683702910,0.8311,2765.8,2765.2,3.771]
[1749683703084,0.8311,2765.8,2765.2,5.36509124]
[1749683705126,0.7519,2765.4,2765.3,1.005]
[1749683712033,0.7519,2765.4,2764.9,10.0]
[1749683712235,0.7519,2765.4,2765.3,1.005]
[1749683712910,0.7519,2765.4,2765.0,3.769]
[1749683713095,0.1808,2765.0,2764.7,2.15137707]
[1749683713295,0.1808,2765.0,2764.8,0.29548771]
[1749683713497,7.07370968,2765.4,2764.9,4.774]
[1749683714116,0.7519,2765.4,2764.9,4.774]
[1749683715055,0.7519,2765.4,2765.0,4.774]
[1749683715215,0.7519,2765.4,2765.1,3.769]
[1749683715412,0.7739,2766.0,2765.1,4.32675]
[1749683715633,0.7739,2766.0,2765.1,3.769]
[1749683719410,7.09570968,2766.0,2765.1,3.769]
[1749683719758,0.7739,2766.0,2765.2,7.15490968]
[1749683719961,0.7739,2766.0,2765.3,10.0]
[1749683723606,0.7739,2766.0,2765.4,3.767]
[1749683724364,0.7739,2766.0,2765.4,4.70319244]
[1749683725115,6.32180968,2766.5,2765.5,10.0]
[1749683725321,6.32180968,2766.5,2765.6,0.8118]
[1749683725322,0.8015,2766.4,2765.6,0.8118]
[1749683732079,0.8015,2766.4,2765.9,10.0]
[1749683732310,0.8015,2766.4,2766.0,4.768]
[1749683732496,0.8015,2766.4,2766.1,1.4768]
[1749683735237,7.09550968,2766.3,2766.2,1.002]
[1749683735443,0.7737,2766.2,2766.0,1.002]
[1749683735729,6.32180968,2766.1,2766.0,1.002]
[1749683735919,0.7511,2766.1,2766.0,1.002]
[1749683736228,7.07290968,2766.1,2766.0,1.002]
[1749683737536,0.7511,2766.1,2766.0,1.002]
[1749683737695,0.8105,2766.6,2766.0,4.767]
[1749683737897,0.8105,2767.1,2766.2,0.771]
[1749683738091,0.8105,2767.1,2766.2,10.771]
[1749683738733,0.8105,2767.1,2766.3,6.32180968]
[1749683738906,0.8105,2767.1,2766.4,3.764]
[1749683739232,0.8105,2767.1,2766.5,1.00858097]
[1749683739436,0.8105,2767.1,2766.4,3.764]
[1749683743207,0.18,2766.4,2766.2,0.771]
[1749683743406,0.8105,2767.1,2766.3,4.765]
[1749683747343,0.18,2766.3,2766.2,0.771]
[1749683747544,0.18,2766.3,2766.2,5.536]
[1749683747754,0.18,2766.3,2766.2,6.0896]
[1749683748125,0.18,2766.3,2766.2,16.0896]
[1749683748627,0.18,2766.3,2766.2,0.5536]
[1749683748856,0.18,2766.3,2766.1,1.002]
[1749683749020,9.6490334,2766.4,2766.1,1.002]
[1749683749224,0.7825,2766.5,2766.1,1.002]
[1749683752846,0.7965,2766.9,2766.1,1.002]
[1749683753084,0.7965,2766.9,2766.2,3.762]
[1749683753366,0.7965,2766.9,2766.2,4.31529]
[1749683753731,0.7965,2766.9,2766.3,0.7635]
[1749683754091,9.6490334,2767.3,2766.3,0.7635]
[1749683754250,0.8292,2767.2,2766.3,10.7635]
[1749683754873,0.8292,2767.2,2766.3,10.0]
[1749683755164,0.8292,2767.2,2766.4,12.40873154]
[1749683755379,9.6490334,2767.7,2766.5,10.7623]
[1749683755380,0.7708,2767.6,2766.5,10.7623]
[1749683755523,0.7708,2767.6,2766.6,0.7898]
[1749683755728,0.7708,2767.6,2766.7,3.762]
[1749683758627,0.7708,2767.6,2766.6,0.7898]
[1749683758628,10.4198334,2767.6,2766.6,0.7898]
[1749683758830,1.04198334,2767.5,2766.7,4.763]
[1749683760677,10.4198334,2767.6,2766.8,0.8268]
[1749683761236,6.31761572,2766.9,2766.6,0.8268]
[1749683761435,6.31761572,2766.7,2766.5,0.999]
[1749683761733,7.04676729,2766.7,2766.5,0.999]
[1749683761939,6.31761572,2766.7,2766.5,0.999]
[1749683762140,6.31761572,2766.7,2766.0,0.8268]
[1749683762339,6.31761572,2766.2,2766.1,0.999]
[1749683762843,6.31761572,2766.2,2765.8,0.8268]
[1749683762983,6.31761572,2766.0,2765.8,0.999]
[1749683763367,0.7939,2766.1,2765.8,0.999]
[1749683763950,0.8257,2766.6,2765.9,0.7508]
[1749683764156,0.8257,2766.9,2765.9,10.7508]
[1749683765092,0.8257,2766.9,2765.9,0.7508]
[1749683765267,10.48390348,2766.9,2765.9,0.7508]
[1749683765588,0.7824,2766.5,2766.0,0.999]
[1749683765892,1.24097,2766.9,2766.0,0.999]
[1749683766075,0.7824,2766.9,2766.0,10.999]
[1749683766275,1.07896781,2767.7,2766.1,0.7971]
[1749683766276,0.7824,2767.1,2766.1,0.7971]
[1749683766882,9.65820348,2767.3,2766.1,0.7971]
[1749683766883,0.8263,2767.3,2766.2,10.0]
[1749683767057,0.8263,2767.5,2766.3,0.7969]
[1749683767264,0.8263,2767.5,2766.5,10.7969]
[1749683769359,13.61284882,2767.9,2766.5,10.7969]
[1749683769360,0.8263,2767.8,2766.6,0.7969]
[1749683769658,10.8263,2767.8,2766.6,0.7969]
[1749683770293,10.8263,2767.8,2766.5,10.0]
[1749683770294,0.8263,2768.1,2767.1,10.0]
[1749683770499,0.8263,2768.1,2767.2,7.52072035]
[1749683771610,0.8263,2768.3,2767.2,5.5549]
[1749683772799,9.65820348,2768.2,2767.2,5.5549]
[1749683775709,1.16474716,2768.3,2767.2,5.5549]
[1749683775883,9.65820348,2768.2,2767.2,5.5549]
[1749683777707,0.8263,2768.3,2767.2,5.5549]
[1749683777927,0.8263,2768.3,2767.3,0.55549]
[1749683778076,1.16474502,2768.3,2767.3,0.55549]
[1749683778277,1.16474491,2768.3,2767.3,0.55549]
[1749683778478,1.16474547,2768.3,2767.3,0.55549]
[1749683778710,0.8263,2768.3,2767.3,0.55549]
[1749683778926,0.8263,2768.3,2767.5,0.832]
[1749683782405,10.48450348,2768.3,2767.5,0.832]
[1749683783987,10.7661,2768.5,2767.5,0.832]
[1749683784188,10.0,2768.5,2767.5,0.832]
[1749683784918,9.65820348,2768.6,2767.5,0.832]
[1749683785533,9.65820348,2768.6,2767.7,0.7714]
[1749683785711,9.65820348,2768.6,2767.9,0.7714]
[1749683788927,10.44020348,2769.0,2767.9,0.7714]
[1749683789145,9.65820348,2768.7,2768.0,0.999]
[1749683789314,9.65820348,2768.7,2768.1,1.17704]
[1749683789851,10.44020348,2769.0,2768.2,0.7503]
[1749683790550,9.65820348,2768.4,2768.2,0.999]
[1749683790749,0.96582035,2768.3,2768.2,0.999]
[1749683791050,20.44590348,2768.7,2768.2,0.999]
[1749683791248,20.44590348,2768.7,2768.2,1.7493]
[1749683792218,20.44590348,2768.7,2768.2,0.999]
[1749683792450,20.44590348,2768.7,2767.0,0.55]
[1749683792451,9.65820348,2768.4,2768.3,0.997]
[1749683793521,9.65820348,2768.6,2768.3,0.997]
[1749683793853,0.18,2768.3,2767.8,0.8174]
[1749683794056,9.65820348,2768.6,2767.9,0.997]
[1749683795119,13.755,2768.7,2768.0,0.7717]
[1749683795327,3.755,2768.7,2768.0,0.7717]
[1749683795523,5.17794035,2768.7,2768.0,0.7717]
[1749683795861,1.42294035,2768.7,2768.1,0.997]
[1749683796357,10.0,2768.8,2768.1,0.997]
[1749683798440,0.7755,2769.2,2768.2,0.7612]
[1749683798779,0.7823,2769.6,2768.3,10.0]
[1749683798976,10.7823,2769.6,2768.4,0.8058]
[1749683799271,11.43926815,2769.6,2768.6,0.8058]
[1749683799558,1.43926815,2769.6,2768.6,0.8058]
[1749683799748,10.0,2769.6,2768.6,0.8058]
[1749683800463,14.19550348,2769.9,2768.6,0.8058]
[1749683800662,10.0,2769.8,2768.6,0.8058]
[1749683801160,14.19550348,2769.9,2768.6,0.8058]
[1749683801161,9.65820348,2769.9,2768.6,0.8058]
[1749683801349,0.8628154,2771.0,2769.6,0.8058]
[1749683801553,9.65820348,2770.3,2769.6,0.8058]
[1749683801724,10.0,2770.2,2769.7,0.997]
[1749683801932,9.65820348,2770.0,2769.7,0.997]
[1749683802161,10.62402383,2770.0,2769.7,0.997]
[1749683802825,0.18,2769.7,2769.6,0.8058]
[1749683803158,0.18,2769.7,2769.6,1.8028]
[1749683806568,0.18,2769.7,2768.9,0.7703]
[1749683806869,0.18,2769.7,2769.0,0.997]
[1749683806870,9.65820348,2769.5,2769.0,0.997]
[1749683807070,11.47792517,2769.5,2769.0,0.997]
[1749683807287,0.18,2769.0,2768.9,0.7703]
[1749683807447,0.18,2769.0,2768.9,1.7673]
[1749683815173,0.18,2769.0,2768.9,0.7703]
[1749683815380,0.18,2769.0,2768.9,15.5193]
[1749683815578,0.18,2769.0,2768.9,17.69493]
[1749683816590,0.18,2769.0,2768.9,13.94293]
[1749683816794,0.18,2769.0,2768.9,17.69493]
[1749683816994,0.18,2769.0,2768.9,12.94593]
[1749683817199,0.18,2769.0,2768.9,17.69293]
[1749683819354,0.8216,2770.8,2769.0,10.55]
[1749683819561,0.18,2769.2,2769.1,14.15749532]
[1749683819761,0.18,2769.2,2769.1,17.90849532]
[1749683819963,0.18,2769.2,2769.1,18.08857801]
[1749683820171,0.18,2769.2,2769.1,14.15749532]
[1749683820490,0.18,2769.2,2769.1,18.90449532]
[1749683820652,0.18,2769.2,2769.1,28.5626988]
[1749683821251,0.18,2769.2,2769.1,14.15749532]
[1749683821467,0.18,2769.2,2769.1,18.90449532]
[1749683822315,10.7681,2771.0,2769.1,18.90449532]
[1749683822520,0.18,2769.6,2769.5,10.7953]
[1749683822826,0.18,2769.6,2769.5,5.5413]
[1749683825310,0.18,2769.6,2769.5,0.7953]
[1749683825522,0.18,2769.6,2769.5,1.7903]
[1749683825690,0.18,2769.6,2769.5,0.995]
[1749683827186,0.18,2769.6,2769.2,0.8184]
[1749683827511,0.18,2769.6,2769.5,0.995]
[1749683827719,0.7748,2770.0,2769.5,0.995]
[1749683827901,0.7748,2770.0,2769.6,0.995]
[1749683828106,0.7748,2770.0,2769.7,0.995]
[1749683828299,1.51771169,2770.0,2769.7,0.995]
[1749683832228,0.18,2769.7,2769.1,3.75]
[1749683832403,5.1278318,2770.0,2769.2,0.995]
[1749683832732,1.51771169,2770.0,2769.2,0.995]
[1749683832928,0.7748,2770.0,2769.2,1.54799]
[1749683833893,4.38494828,2770.0,2769.2,0.995]
[1749683834637,4.38498063,2770.0,2769.2,0.995]
[1749683835503,0.7748,2770.0,2769.2,0.995]
[1749683835833,4.38493769,2770.0,2769.2,0.995]
[1749683836611,0.7748,2770.0,2769.2,0.995]
[1749683836921,0.47223501,2769.9,2769.2,0.995]
[1749683838004,0.7748,2770.0,2769.2,0.995]
[1749683841305,0.33825624,2769.9,2769.2,0.995]
[1749683841505,0.3382567,2769.9,2769.2,0.995]
[1749683841740,0.7748,2770.0,2769.2,0.995]
[1749683842101,0.33825639,2769.9,2769.2,0.995]
[1749683842304,0.47231049,2769.9,2769.2,0.995]
[1749683842841,0.81056677,2769.9,2769.2,0.995]
[1749683843045,0.47231049,2769.9,2769.2,0.995]
[1749683843354,6.77854206,2769.9,2769.2,0.995]
[1749683843912,10.38878189,2769.9,2769.3,0.995]
[1749683844112,1.11635819,2769.8,2769.3,0.995]
[1749683845443,6.77854206,2769.9,2769.3,0.995]
[1749683845765,0.47231049,2769.9,2769.3,0.995]
[1749683845972,0.33806969,2770.1,2769.5,0.7642]
[1749683846120,10.7577,2770.3,2769.5,0.7642]
[1749683846329,0.7577,2770.3,2769.5,0.7642]
[1749683846564,7.06393157,2770.7,2769.6,0.7642]
[1749683846857,7.06393157,2770.7,2769.7,0.7642]
[1749683847055,1.04439595,2770.6,2769.7,0.7642]
[1749683847255,6.30623157,2770.5,2769.7,0.7642]
[1749683850660,6.30623157,2770.1,2769.7,0.7642]
[1749683850868,6.30623157,2770.2,2769.7,0.7642]
[1749683851066,6.30623157,2769.8,2769.4,0.7609]
[1749683851369,0.18,2769.7,2769.6,0.995]
[1749683851661,0.7923,2769.8,2769.6,0.995]
[1749683852429,0.18,2769.6,2769.1,0.7609]
[1749683852625,6.30623157,2769.5,2769.4,0.994]
[1749683853230,0.77835085,2769.7,2769.4,0.994]
[1749683853428,4.05084799,2769.7,2769.4,0.994]
[1749683853762,0.44026983,2769.7,2769.4,0.994]
[1749683854764,0.7783499,2769.7,2769.4,0.994]
[1749683854965,1.00825589,2769.6,2769.4,0.994]
[1749683855175,0.63062316,2770.2,2769.4,0.994]
[1749683855342,0.7728,2770.4,2769.5,0.7921]
[1749683855667,10.7728,2770.4,2769.5,0.7921]
[1749683856238,4.38239462,2770.4,2769.5,0.7921]
[1749683856929,3.60972596,2770.3,2769.5,0.7921]
[1749683857270,14.38242438,2770.4,2769.5,0.7921]
[1749683857472,1.81304244,2770.3,2769.5,0.7921]
[1749683857671,11.44662283,2770.3,2769.5,0.7921]
[1749683857869,10.0,2770.2,2769.6,0.994]
[1749683858075,3.609997,2770.1,2769.6,0.994]
[1749683858535,13.24394936,2769.8,2769.2,0.7585]
[1749683858740,0.9724996,2769.7,2769.3,0.994]
[1749683862938,4.5576,2769.9,2769.3,0.994]
[1749683863879,13.748,2770.0,2769.3,0.994]
[1749683864279,10.0,2770.0,2769.3,0.994]
[1749683864776,4.5042,2770.2,2769.3,0.994]
[1749683865085,4.5042,2770.2,2769.4,0.8299]
[1749683865293,1.45042,2770.1,2769.4,0.8299]
[1749683868966,11.08400039,2770.1,2769.4,0.8299]
[1749683869186,9.63358039,2769.8,2769.4,0.994]
[1749683869982,10.41058039,2769.8,2769.4,0.994]
[1749683870397,4.525,2769.8,2769.4,0.994]
[1749683870700,9.63358039,2769.5,2769.4,0.994]
[1749683872364,0.81352823,2769.7,2769.1,0.8247]
[1749683872590,0.81352823,2769.7,2769.3,0.994]
[1749683875287,0.1127661,2769.9,2769.4,0.8138]
[1749683875454,0.11276349,2769.9,2769.4,0.8138]
[1749683875662,0.11276083,2770.0,2769.4,0.8138]
[1749683875865,5.19742,2770.1,2769.4,0.8138]
[1749683876093,5.31017711,2770.1,2769.4,0.8138]
[1749683876400,5.31017709,2770.1,2769.4,0.8138]
[1749683876599,5.19742,2770.1,2769.4,0.8138]
[1749683876774,5.31017459,2770.1,2769.4,0.8138]
[1749683876979,5.19742,2770.1,2769.4,0.8138]
[1749683878565,0.763,2770.4,2769.4,0.99458]
[1749683878765,0.86362091,2770.6,2769.4,0.99458]
[1749683878999,5.230455,2771.1,2769.4,0.99458]
[1749683879000,0.7972,2771.0,2769.7,0.7758]
[1749683879201,3.747,2771.0,2769.7,0.7758]
[1749683879365,3.747,2771.0,2769.6,9.62965772]
[1749683879366,5.08466577,2771.0,2769.9,0.7758]
[1749683879568,10.0,2770.9,2769.9,0.7758]
[1749683880303,5.08466577,2771.0,2769.9,0.7758]
[1749683880465,10.0,2770.9,2769.9,0.7758]
[1749683880662,9.62965772,2771.2,2770.0,0.95743458]
[1749683880922,9.62965772,2770.9,2770.1,0.811]
[1749683881217,9.62965772,2770.9,2770.2,0.994]
[1749683881798,19.62965772,2771.2,2770.3,0.7941]
[1749683884113,23.23822073,2771.2,2770.3,0.7941]
[1749683884318,2.32382207,2771.1,2770.4,0.992]
[1749683884890,2.32382207,2771.1,2770.5,0.8092]
[1749683885393,19.62965772,2771.2,2770.5,0.8092]
[1749683885587,10.0,2771.2,2770.5,0.8092]
[1749683885799,19.62965772,2771.2,2770.5,0.8092]
[1749683887424,10.0,2771.4,2770.5,0.8092]
[1749683887586,3.746,2771.5,2770.5,0.8092]
[1749683888611,0.14336581,2771.6,2770.5,0.8092]
[1749683889193,0.14336581,2771.6,2770.5,1.17733953]
[1749683889389,0.14336581,2771.6,2770.7,0.8092]
[1749683890092,0.14336581,2771.6,2770.8,3.745]
[1749683890291,0.14336581,2771.6,2770.9,10.0]
[1749683890489,0.14336581,2771.6,2771.0,0.8092]
[1749683891122,0.14336581,2771.6,2771.1,0.8092]
[1749683891327,0.14336581,2771.6,2771.3,0.8092]
[1749683894820,0.18,2771.3,2771.1,1.7816]
[1749683895019,0.14336581,2771.6,2771.1,1.7816]
[1749683895736,0.14336581,2771.6,2771.2,0.992]
[1749683896457,0.14336581,2771.6,2771.2,1.54456]
[1749683897425,0.14336581,2771.6,2771.3,0.7601]
[1749683898413,0.14336581,2771.6,2771.4,0.55]
[1749683898658,0.14336581,2771.6,2771.5,0.7601]
[1749683899019,0.14336581,2771.6,2771.5,10.7601]
[1749683899358,0.14336581,2771.6,2771.5,16.57211]
[1749683899663,0.14336581,2771.6,2771.5,11.83611]
[1749683899879,0.14336581,2771.6,2771.5,17.12211]
[1749683900466,0.14336581,2771.6,2771.5,16.57111]
[1749683901013,0.14336581,2771.6,2771.5,17.12111]
[1749683902573,0.14336581,2771.6,2771.5,12.38611]
[1749683902856,0.14336581,2771.6,2771.5,17.12111]
[1749683904257,0.14336581,2771.6,2771.5,12.38611]
[1749683904457,0.14336581,2771.6,2771.5,17.12111]
[1749683904654,0.14336581,2771.6,2771.5,12.38611]
[1749683904860,0.14336581,2771.6,2771.5,17.12111]
[1749683905557,0.14336581,2771.6,2771.5,12.38611]
[1749683905766,0.14336581,2771.6,2771.5,17.12111]
[1749683906117,0.14336581,2771.6,2771.5,11.83611]
[1749683906364,0.14336581,2771.6,2771.5,2.82811]
[1749683906658,9.62965772,2772.5,2772.0,2.85663419]
[1749683906817,3.60642517,2772.9,2772.0,2.85663419]
[1749683906818,9.62965772,2772.2,2772.0,2.85663419]
[1749683907660,0.7893,2772.4,2772.0,2.85663419]
[1749683907824,10.0,2772.8,2772.0,2.85663419]
[1749683907825,0.7893,2772.7,2772.0,3.63273419]
[1749683908257,0.7893,2773.0,2772.0,3.63273419]
[1749683908555,2.40250485,2772.9,2772.0,3.63273419]
[1749683908762,10.44735772,2772.5,2772.0,2.85663419]
[1749683909168,9.62965772,2772.2,2772.0,2.85663419]
[1749683909849,0.8177,2772.1,2772.0,2.85663419]
[1749683911624,0.93037594,2772.1,2772.0,2.85663419]
[1749683911934,1.20073719,2772.1,2772.0,2.85663419]
[1749683912245,1.31341595,2772.1,2772.0,2.85663419]
[1749683912557,1.31341277,2772.1,2772.0,2.85663419]
[1749683912751,1.31341278,2772.1,2772.0,2.85663419]
[1749683912920,1.3134128,2772.1,2772.0,2.85663419]
[1749683913123,1.20073719,2772.1,2772.0,2.85663419]
[1749683913944,1.31341367,2772.1,2772.0,2.85663419]
[1749683914141,1.20073719,2772.1,2772.0,2.85663419]
[1749683914547,1.31341118,2772.1,2772.0,2.85663419]
[1749683914720,1.20073719,2772.1,2772.0,2.85663419]
[1749683916026,20.94306819,2772.1,2772.0,2.85663419]
[1749683916228,24.55045048,2772.1,2772.0,2.85663419]
[1749683916531,20.83039491,2772.1,2772.0,2.85663419]
[1749683916955,20.94307588,2772.1,2772.0,2.85663419]
[1749683917121,20.83039491,2772.1,2772.0,2.85663419]